[Event "EYCC O18-ch 2024"]
[Site "Prague"]
[Date "2024.08.30"]
[Round "8.15"]
[White "Maldonado Mena, German"]
[Black "Hercegovac, Neven"]
[Result "0-1"]
[ECO "E71"]
[WhiteElo "2073"]
[BlackElo "2278"]
[Annotator "RC"]
[PlyCount "142"]
[EventDate "2024.08.19"]
[EventType "swiss"]
[EventCountry "CZE"]
[SourceTitle "playchess.com"]
[Source "ChessBase"]
[SourceQuality "1"]
[TimeControl "5400+30"]

1. d4 {[%emt 0:00:48]} Nf6 {[%emt 0:00:05]} 2. c4 {[%emt 0:00:09]} g6 {[%emt 0:00:05]} 3. Nc3 {[%emt 0:00:05]} Bg7 {[%emt 0:00:04]} 4. e4 {[%emt 0:00:07]} d6 {[%emt 0:00:04]} 5. h3 {[%emt 0:00:05]} O-O {[%emt 0:00:05]} 6. Be3 {[%emt 0:00:04]} Nbd7 {[%emt 0:00:07]} 7. g4 {[%emt 0:02:17]} a6 {[%emt 0:00:05]} 8. f4 {[%emt 0:04:46]} c5 {[%emt 0:00:10]} 9. dxc5 {[%emt 0:02:33]} Nxc5 {[%emt 0:04:42]} 10. Bxc5 {[%emt 0:00:58]} dxc5 {[%emt 0:00:02]} 11. Qxd8 {[%emt 0:00:09]} Rxd8 {[%emt 0:00:03]} 12. e5 {[%emt 0:00:05]} Nd7 {[%emt 0:03:40]} 13. Rd1 {[%emt 0:02:33]} g5 {[%emt 0:01:29]} 14. Nf3 {[%emt 0:22:09]} gxf4 {[%emt 0:00:34]} 15. Rh2 {[%emt 0:00:04]} Re8 {[%emt 0:03:19]} 16. Re2 {[%emt 0:05:53]} Nf8 {[%emt 0:06:15]} 17. Nd5 {[%emt 0:01:06]} Ne6 {[%emt 0:00:05]} 18. Nb6 {[%emt 0:00:04]} Rb8 {[%emt 0:00:49]} 19. Re4 {[%emt 0:01:17]} h6 {[%emt 0:02:43]} 20. h4 {[%emt 0:01:36]} Rd8 {[%emt 0:04:19]} 21. Rxd8+ {[%emt 0:00:31]} Nxd8 {[%emt 0:00:02]} 22. Nxc8 {[%emt 0:00:16]} Rxc8 {[%emt 0:00:02]} 23. Rxf4 {[%emt 0:00:11]} Nc6 {[%emt 0:01:27]} 24. Re4 {[%emt 0:01:13]} Rd8 {[%emt 0:03:50]} 25. a3 {[%emt 0:01:59]} e6 {[%emt 0:02:13]} 26. Be2 {[%emt 0:00:56]} b6 {[%emt 0:00:29]} 27. Bd1 {[%emt 0:06:04]} Rb8 {[%emt 0:04:30]} 28. Kd2 {[%emt 0:01:28]} Kf8 {[%emt 0:01:06]} 29. Kc2 {[%emt 0:00:19]} Ke7 {[%emt 0:00:44]} 30. b3 {[%emt 0:00:06]} Rd8 {[%emt 0:11:07]} 31. Be2 {[%emt 0:01:23]} a5 {[%emt 0:00:36]} 32. Bd1 {[%emt 0:01:53]} Kf8 {[%emt 0:04:12]} 33. Be2 {[%emt 0:00:59]} Ra8 {[%emt 0:01:19]} 34. Bd1 {[%emt 0:03:18]} a4 {[%emt 0:03:45]} 35. bxa4 {[%emt 0:00:06]} Rxa4 {[%emt 0:00:07]} 36. Kb3 {[%emt 0:00:07]} b5 {[%emt 0:04:00]} 37. Nd2 {[%emt 0:00:05]} Ra5 {[%emt 0:04:13]} 38. cxb5 {[%emt 0:07:18]} Rxb5+ {[%emt 0:01:34]} 39. Kc4 {[%emt 0:00:08]} Ra5 {[%emt 0:01:10]} 40. Nf3 {[%emt 0:01:21]} Rxa3 {[%emt 0:05:34]} 41. Kxc5 {[%emt 0:00:25]} Ne7 {[%emt 0:01:15]} 42. Rb4 {[%emt 0:03:03]} Ra8 {[%emt 0:00:05]} 43. Rb7 {[%emt 0:10:34]} Rd8 {[%emt 0:02:07]} 44. Bb3 {[%emt 0:02:38]} Ng6 {[%emt 0:03:03]} 45. g5 {[%emt 0:01:09]} h5 {[%emt 0:01:06]} 46. Bc4 {[%emt 0:03:53]} Bxe5 {[%emt 0:01:59]} 47. Nxe5 {[%emt 0:05:00]} Nxe5 {[%emt 0:00:02]} 48. Bb3 {[%emt 0:00:07]} Ng6 {[%emt 0:01:01]} 49. Rb4 {[%emt 0:00:12]} Rd2 {[%emt 0:01:14]} 50. Re4 {[%emt 0:00:45]} Kg7 {[%emt 0:01:46]} 51. Ba4 {[%emt 0:00:53]} Rh2 {[%emt 0:00:34]} 52. Bd1 {[%emt 0:00:05]} Rxh4 {[%emt 0:00:04]} 53. Rxh4 {[%emt 0:00:08]} Nxh4 {[%emt 0:00:02]} 54. Bxh5 {[%emt 0:00:07]} Nf5 {[%emt 0:00:26]} 55. g6 {[%emt 0:01:02]} f6 {[%emt 0:00:40]} 56. Kc4 {[%emt 0:00:06]} Ng3 {[%emt 0:00:06]} 57. Bg4 {[%emt 0:00:11]} f5 {[%emt 0:00:09]} 58. Bf3 {[%emt 0:00:05]} Kxg6 {[%emt 0:00:05]} 59. Kd4 {[%emt 0:00:04]} Kf6 {[%emt 0:00:07]} 60. Ke3 {[%emt 0:00:03]} e5 {[%emt 0:00:14]} 61. Bb7 {[%emt 0:00:17]} Nh5 {[%emt 0:00:28]} 62. Kf3 {[%emt 0:00:09]} Ng7 {[%emt 0:00:09]} 63. Ke3 {[%emt 0:00:13]} Ne6 {[%emt 0:00:04]} 64. Kf3 {[%emt 0:00:14]} e4+ {[%emt 0:00:16]} 65. Kf2 {[%emt 0:00:35]} Ke5 {[%emt 0:00:05]} 66. Bc8 {[%emt 0:00:18]} f4 {[%emt 0:00:06]} 67. Bb7 {[%emt 0:00:08]} Nd4 {[%emt 0:00:30]} 68. Ba6 {[%emt 0:00:22]} e3+ {[%emt 0:00:21]} 69. Ke1 {[%emt 0:00:15]} f3 {[%emt 0:00:06]} 70. Kf1 {[%emt 0:00:05]} Kf4 {[%emt 0:00:30]} 71. Ke1 {[%emt 0:00:42]} Ke5 0-1

[Event "EYCC O18-ch 2024"]
[Site "Prague"]
[Date "2024.08.30"]
[Round "8.16"]
[White "Shamatava, Nikolozi"]
[Black "Sachilaru, Alexandru"]
[Result "1/2-1/2"]
[ECO "B12"]
[WhiteElo "2196"]
[BlackElo "2255"]
[Annotator "RC"]
[PlyCount "96"]
[EventDate "2024.08.19"]
[EventType "swiss"]
[EventCountry "CZE"]
[SourceTitle "playchess.com"]
[Source "ChessBase"]
[SourceQuality "1"]
[TimeControl "5400+30"]

1. e4 {[%emt 0:00:03]} c6 {[%emt 0:00:12]} 2. d4 {[%emt 0:00:08]} d5 {[%emt 0:00:10]} 3. e5 {[%emt 0:00:07]} c5 {[%emt 0:00:25]} 4. dxc5 {[%emt 0:00:06]} e6 {[%emt 0:00:22]} 5. a3 {[%emt 0:00:06]} Bxc5 6. Nf3 {[%emt 0:01:41]} Nd7 {[%emt 0:03:34]} 7. b4 {[%emt 0:00:41]} Be7 {[%emt 0:00:35]} 8. Bb2 {[%emt 0:01:23]} a5 {[%emt 0:02:15]} 9. b5 {[%emt 0:04:14]} f6 {[%emt 0:00:52]} 10. Bd3 {[%emt 0:11:40]} Nh6 {[%emt 0:01:03]} 11. O-O {[%emt 0:05:20]} Nf7 {[%emt 0:01:59]} 12. exf6 {[%emt 0:00:24]} Bxf6 {[%emt 0:00:35]} 13. Qc1 {[%emt 0:07:52]} O-O {[%emt 0:03:32]} 14. a4 {[%emt 0:03:07]} Nc5 {[%emt 0:10:09]} 15. Re1 {[%emt 0:03:03]} Re8 {[%emt 0:13:55]} 16. Ne5 {[%emt 0:05:20]} Nxe5 {[%emt 0:04:54]} 17. Bxe5 {[%emt 0:00:13]} Bxe5 {[%emt 0:02:41]} 18. Rxe5 {[%emt 0:00:06]} Qf6 {[%emt 0:03:35]} 19. Qg5 {[%emt 0:03:05]} Qxg5 {[%emt 0:03:34]} 20. Rxg5 {[%emt 0:00:05]} e5 {[%emt 0:01:01]} 21. Nc3 {[%emt 0:02:03]} h6 {[%emt 0:02:17]} 22. Rg3 {[%emt 0:03:09]} Be6 {[%emt 0:04:02]} 23. Bg6 {[%emt 0:04:30]} Rec8 {[%emt 0:03:56]} 24. h4 {[%emt 0:00:26]} Nd7 {[%emt 0:05:12]} 25. Rd1 {[%emt 0:01:49]} Rc5 {[%emt 0:03:01]} 26. h5 {[%emt 0:03:36]} Rac8 {[%emt 0:02:03]} 27. Ne2 {[%emt 0:02:00]} Nf8 {[%emt 0:07:09]} 28. c3 {[%emt 0:02:15]} Nxg6 {[%emt 0:01:46]} 29. hxg6 {[%emt 0:02:31]} Bf5 {[%emt 0:03:36]} 30. Rd2 {[%emt 0:02:35]} Re8 {[%emt 0:01:11]} 31. f4 {[%emt 0:03:03]} Rc4 {[%emt 0:03:12]} 32. Re3 {[%emt 0:01:55]} Bxg6 {[%emt 0:04:13]} 33. Rxd5 {[%emt 0:00:29]} Rxa4 {[%emt 0:02:06]} 34. Rexe5 {[%emt 0:01:40]} Re4 {[%emt 0:02:06]} 35. Nd4 {[%emt 0:04:36]} a4 {[%emt 0:01:39]} 36. b6 {[%emt 0:00:01]} R4xe5 {[%emt 0:01:14]} 37. fxe5 {[%emt 0:00:22]} Ra8 {[%emt 0:01:27]} 38. e6 {[%emt 0:00:05]} a3 {[%emt 0:01:07]} 39. e7 {[%emt 0:00:11]} Ra6 {[%emt 0:02:40]} 40. Rd8+ Kh7 41. Ne6 Bf7 42. Nf8+ Kg8 43. Ne6+ Kh7 44. Rd6 Ra8 45. Rd4 Kg8 46. Nc5 Bg6 47. Ra4 Re8 48. Rxa3 Rxe7 1/2-1/2

[Event "EYCC O18-ch 2024"]
[Site "Prague"]
[Date "2024.08.30"]
[Round "8.16"]
[White "Asllani, Dorian"]
[Black "Szikszai, Bertalan"]
[Result "1/2-1/2"]
[ECO "D37"]
[WhiteElo "2061"]
[BlackElo "2278"]
[Annotator "ChessBase"]
[PlyCount "259"]
[EventDate "2024.08.19"]
[EventType "swiss"]
[EventCountry "CZE"]
[SourceTitle "playchess.com"]
[Source "ChessBase"]
[SourceQuality "1"]
[TimeControl "5400+30"]

1. d4 {[%emt 0:00:04]} d5 {[%emt 0:00:08]} 2. c4 {[%emt 0:00:28]} e6 {[%emt 0:00:10]} 3. Nc3 {[%emt 0:00:16]} Nf6 {[%emt 0:00:07]} 4. Nf3 {[%emt 0:00:25]} dxc4 {[%emt 0:00:25]} 5. e3 {[%emt 0:01:28]} a6 {[%emt 0:00:16]} 6. a4 {[%emt 0:00:34]} b6 {[%emt 0:00:14]} 7. Bxc4 {[%emt 0:00:29]} Bb7 {[%emt 0:00:05]} 8. O-O {[%emt 0:00:39]} Bb4 {[%emt 0:00:31]} 9. Qe2 {[%emt 0:03:02]} O-O {[%emt 0:01:14]} 10. Rd1 {[%emt 0:00:34]} Nbd7 {[%emt 0:00:18]} 11. Bd3 {[%emt 0:07:51]} Qe7 {[%emt 0:02:06]} 12. e4 {[%emt 0:03:45]} e5 {[%emt 0:01:40]} 13. d5 {[%emt 0:14:49]} Nc5 {[%emt 0:27:18]} 14. Bc2 {[%emt 0:03:23]} a5 {[%emt 0:00:14]} 15. Nh4 {[%emt 0:04:08]} Bc8 {[%emt 0:19:23]} 16. g3 {[%emt 0:08:14]} Nb7 {[%emt 0:13:20]} 17. Be3 {[%emt 0:18:11]} Ng4 {[%emt 0:04:33]} 18. Ng2 {[%emt 0:10:00]} Nd6 {[%emt 0:01:00]} 19. Bd2 {[%emt 0:05:14]} Bc5 {[%emt 0:02:13]} 20. Ne3 {[%emt 0:00:48]} h5 {[%emt 0:08:30]} 21. f3 {[%emt 0:02:43]} Nxe3 {[%emt 0:00:50]} 22. Bxe3 {[%emt 0:00:01]} Nc4 {[%emt 0:07:05]} 23. Qxc4 {[%emt 0:00:36]} Bxe3+ {[%emt 0:00:04]} 24. Kg2 {[%emt 0:02:08]} Ba6 {[%emt 0:02:52]} 25. Qb3 {[%emt 0:03:35]} Bc5 {[%emt 0:01:29]} 26. Bd3 {[%emt 0:01:20]} Bc8 {[%emt 0:00:06]} 27. Nb5 {[%emt 0:00:49]} h4 {[%emt 0:01:23]} 28. g4 {[%emt 0:01:05]} Qg5 {[%emt 0:02:03]} 29. Qc2 {[%emt 0:02:08]} Bd7 {[%emt 0:01:54]} 30. Bc4 {[%emt 0:03:28]} Kh8 {[%emt 0:02:31]} 31. Kh1 {[%emt 0:00:57]} Bxb5 {[%emt 0:00:38]} 32. Bxb5 {[%emt 0:00:22]} Rad8 {[%emt 0:00:16]} 33. Rd3 {[%emt 0:00:46]} Rd6 {[%emt 0:00:38]} 34. Qd2 {[%emt 0:00:09]} Qd8 {[%emt 0:00:41]} 35. Rd1 {[%emt 0:01:06]} Rg6 {[%emt 0:00:30]} 36. b3 {[%emt 0:01:33]} Qe7 {[%emt 0:00:06]} 37. Rf1 {[%emt 0:00:27]} Rd8 {[%emt 0:00:08]} 38. Qe2 {[%emt 0:00:45]} Rf6 {[%emt 0:00:28]} 39. Qg2 {[%emt 0:01:03]} Rf4 {[%emt 0:00:16]} 40. Qh3 {[%emt 0:00:18]} Rd6 {[%emt 0:00:25]} 41. Rfd1 {[%emt 0:00:45]} Qg5 {[%emt 0:00:13]} 42. Rb1 {[%emt 0:00:28]} Kh7 {[%emt 0:00:40]} 43. Rbd1 {[%emt 0:00:14]} Kg8 {[%emt 0:00:07]} 44. Rb1 {[%emt 0:00:03]} Rff6 {[%emt 0:00:21]} 45. Rbd1 {[%emt 0:00:38]} g6 {[%emt 0:00:42]} 46. Qg2 {[%emt 0:00:27]} Kg7 {[%emt 0:00:15]} 47. Qd2 {[%emt 0:00:10]} Rf4 {[%emt 0:00:15]} 48. Qg2 {[%emt 0:01:18]} Rdf6 {[%emt 0:00:31]} 49. Bd7 {[%emt 0:00:25]} Rd6 {[%emt 0:00:12]} 50. Bb5 {[%emt 0:00:17]} Rd8 {[%emt 0:01:10]} 51. Bc6 {[%emt 0:00:53]} Rh8 {[%emt 0:00:40]} 52. h3 {[%emt 0:00:27]} Rd8 {[%emt 0:00:05]} 53. Bb5 {[%emt 0:00:02]} Rd6 {[%emt 0:00:06]} 54. R1d2 {[%emt 0:00:21]} Rff6 {[%emt 0:00:31]} 55. Rd1 {[%emt 0:00:01]} Kh6 {[%emt 0:00:32]} 56. Qd2 {[%emt 0:00:47]} Rf4 {[%emt 0:00:09]} 57. Qe2 {[%emt 0:00:39]} Qe7 {[%emt 0:00:27]} 58. Re1 {[%emt 0:00:56]} Rd8 {[%emt 0:00:37]} 59. Bc6 {[%emt 0:00:44]} Kg7 {[%emt 0:00:49]} 60. Qg2 {[%emt 0:00:14]} Bd4 {[%emt 0:00:50]} 61. Qd2 {[%emt 0:00:02]} Bc5 {[%emt 0:00:53]} 62. Qg2 {[%emt 0:00:01]} Kf6 {[%emt 0:00:14]} 63. Red1 {[%emt 0:00:29]} Kg5 {[%emt 0:00:20]} 64. Bb5 {[%emt 0:00:30]} Rd6 {[%emt 0:00:48]} 65. Bc6 {[%emt 0:00:32]} Rdf6 {[%emt 0:00:12]} 66. Re1 {[%emt 0:01:41]} Bb4 {[%emt 0:00:18]} 67. Rc1 {[%emt 0:00:11]} Ba3 {[%emt 0:00:17]} 68. Rc4 {[%emt 0:00:24]} Bb4 {[%emt 0:00:44]} 69. Rc1 {[%emt 0:00:11]} Qd8 {[%emt 0:00:37]} 70. Bb5 {[%emt 0:00:12]} Bc5 {[%emt 0:00:15]} 71. Rcd1 {[%emt 0:00:13]} Be7 {[%emt 0:00:26]} 72. Rc1 {[%emt 0:01:55]} Bf8 {[%emt 0:00:08]} 73. Rcd1 {[%emt 0:00:25]} Qd6 {[%emt 0:00:10]} 74. Qd2 {[%emt 0:00:28]} Qd8 {[%emt 0:01:57]} 75. Qg2 {[%emt 0:00:10]} Ba3 76. Qe2 {[%emt 0:01:03]} Qe7 {[%emt 0:00:00]} 77. Rg1 {[%emt 0:00:32]} Qc5 {[%emt 0:00:00]} 78. Qd2 {[%emt 0:00:13]} Bb4 {[%emt 0:00:00]} 79. Qb2 {[%emt 0:00:25]} Qe7 {[%emt 0:00:38]} 80. Qg2 {[%emt 0:00:14]} Rd6 {[%emt 0:01:13]} 81. Rc1 {[%emt 0:00:25]} f6 {[%emt 0:01:36]} 82. Qc2 {[%emt 0:01:09]} Bc5 {[%emt 0:00:06]} 83. Qd2 {[%emt 0:00:12]} Rd8 {[%emt 0:00:32]} 84. Qg2 {[%emt 0:00:35]} Kh6 {[%emt 0:00:41]} 85. Re1 {[%emt 0:00:23]} Rg8 {[%emt 0:00:22]} 86. Qe2 {[%emt 0:00:19]} Bd6 {[%emt 0:00:44]} 87. Rg1 {[%emt 0:00:26]} Rg7 {[%emt 0:00:45]} 88. Rc3 {[%emt 0:01:06]} f5 {[%emt 0:00:53]} 89. Bd3 {[%emt 0:00:33]} fxg4 {[%emt 0:00:19]} 90. hxg4 {[%emt 0:00:27]} Rgf7 {[%emt 0:00:43]} 91. Bc2 {[%emt 0:00:32]} Kg7 {[%emt 0:00:31]} 92. Bd1 {[%emt 0:00:19]} Bc5 {[%emt 0:00:31]} 93. Rg2 {[%emt 0:00:32]} Bd4 {[%emt 0:00:52]} 94. Rd3 {[%emt 0:00:19]} Bc5 {[%emt 0:01:09]} 95. Qb2 {[%emt 0:00:45]} Qg5 {[%emt 0:00:22]} 96. Kh2 {[%emt 0:00:25]} h3 {[%emt 0:00:55]} 97. Rc2 {[%emt 0:00:38]} Bd6 {[%emt 0:00:38]} 98. Rf2 {[%emt 0:00:33]} Qh4 {[%emt 0:00:32]} 99. Rdd2 {[%emt 0:00:29]} Kg8 {[%emt 0:00:25]} 100. Rc2 {[%emt 0:00:31]} Qh8 {[%emt 0:00:33]} 101. Qc3 {[%emt 0:00:27]} Bc5 {[%emt 0:00:17]} 102. d6 {[%emt 0:00:33]} cxd6 {[%emt 0:00:17]} 103. Qc4 {[%emt 0:00:29]} Qh4 {[%emt 0:00:28]} 104. Rf1 {[%emt 0:00:08]} Kg7 {[%emt 0:00:12]} 105. Rd2 {[%emt 0:00:39]} Qf6 {[%emt 0:00:27]} 106. Kxh3 {[%emt 0:00:27]} Qg5 {[%emt 0:00:44]} 107. Rh2 {[%emt 0:00:22]} Rf8 {[%emt 0:00:39]} 108. Kg2 {[%emt 0:00:27]} R4f7 {[%emt 0:00:39]} 109. Rfh1 {[%emt 0:00:14]} Qe3 {[%emt 0:00:51]} 110. Qe2 {[%emt 0:01:07]} Qf4 {[%emt 0:00:33]} 111. Bc2 {[%emt 0:00:35]} Be3 {[%emt 0:00:20]} 112. Bd3 {[%emt 0:00:29]} Kf6 {[%emt 0:00:22]} 113. Bc4 {[%emt 0:00:15]} Rg7 {[%emt 0:00:15]} 114. Rh8 {[%emt 0:00:28]} Rxh8 {[%emt 0:00:59]} 115. Rxh8 {[%emt 0:00:01]} Ke7 {[%emt 0:00:22]} 116. Qd3 {[%emt 0:01:07]} Bd4 {[%emt 0:00:13]} 117. Rh1 {[%emt 0:00:13]} Qe3 {[%emt 0:01:00]} 118. Qxe3 {[%emt 0:00:18]} Bxe3 {[%emt 0:00:04]} 119. Rh8 {[%emt 0:00:20]} Kf6 {[%emt 0:00:23]} 120. Kg3 {[%emt 0:01:16]} Kg5 {[%emt 0:00:09]} 121. Kg2 {[%emt 0:00:28]} Bd2 {[%emt 0:00:20]} 122. Kg3 {[%emt 0:00:28]} Be1+ {[%emt 0:00:05]} 123. Kg2 {[%emt 0:00:06]} Kf4 {[%emt 0:00:30]} 124. Rf8+ {[%emt 0:00:16]} Ke3 {[%emt 0:00:56]} 125. Rg8 {[%emt 0:00:45]} Rxg8 {[%emt 0:00:43]} 126. Bxg8 {[%emt 0:00:02]} g5 {[%emt 0:00:12]} 127. Bc4 {[%emt 0:00:23]} Kd4 {[%emt 0:00:41]} 128. Kf1 {[%emt 0:00:14]} Bb4 {[%emt 0:00:17]} 129. Ke2 {[%emt 0:00:06]} Kc3 {[%emt 0:00:03]} 130. Bf7 {[%emt 0:00:13]} 1/2-1/2

[Event "EYCC O18-ch 2024"]
[Site "Prague"]
[Date "2024.08.30"]
[Round "8.17"]
[White "Klimkowski, Jan"]
[Black "Fishchuk, Vladyslav"]
[Result "0-1"]
[ECO "A22"]
[WhiteElo "2508"]
[BlackElo "2264"]
[Annotator "TA"]
[PlyCount "92"]
[EventDate "2024.08.19"]
[EventType "swiss"]
[EventCountry "CZE"]
[SourceTitle "playchess.com"]
[Source "ChessBase"]
[SourceQuality "1"]
[TimeControl "5400+30"]

{[%evp 9,92,60,61,64,76,25,25,25,29,35,20,34,27,27,55,43,31,16,48,44,39,45,28,26,32,18,33,40,34,52,42,38,43,27,51,26,74,60,88,0,41,53,37,10,10,-17,-31,-29,-39,-72,-30,-135,-91,-96,-36,-30,-37,-78,-84,-88,-93,-232,-176,-400,-412,-534,-424,-394,-305,-437,-389,-421,-440,-429,-358,-334,-255,-238,-246,-356,-352,-336,-336,-29996,-29997]} 1. c4 {[%emt 0:00:02]} e5 {[%emt 0:00:12]} 2. Nc3 {[%emt 0:00:30]} Nf6 {[%emt 0:00:03]} 3. Nf3 {[%emt 0:00:00]} e4 {[%emt 0:00:07]} 4. Ng5 {[%emt 0:00:00]} c6 {[%emt 0:00:16]} 5. Qa4 {[%emt 0:00:25]} Qe7 {[%emt 0:00:58]} 6. Qc2 {[%emt 0:00:28][%cal Rc3e4]} b5 {[%emt 0:01:15] [#]} 7. cxb5 {[%emt 0:00:41]} ({Don't play} 7. Ngxe4 bxc4 8. Nxf6+ Qxf6 $11) (7. Ncxe4 Nxe4 8. Qxe4 (8. Nxe4 bxc4 9. e3 d5 $15) 8... bxc4 $11) (7. e3 $1 $16) 7... d5 $11 {[%emt 0:00:46] aiming for ...h6.} 8. e3 {[%emt 0:00:33] White has an edge.} Qe5 {[%emt 0:02:24]} 9. f4 {[%emt 0:00:41]} Qc7 {[%emt 0:00:58]} 10. b3 {[%emt 0:01:02][%cal Oc3d5]} h6 {[%emt 0:07:53]} 11. Nh3 {[%emt 0:00:19]} a6 {[%emt 0:01:55] [#]} 12. b6 $1 {[%emt 0:03:45]} Qxb6 {[%emt 0:00:57]} 13. Bb2 {[%emt 0:00:21]} Be7 {[%emt 0:02:47]} 14. Na4 {[%emt 0:04:03]} Qd8 {[%emt 0:03:13]} 15. Nf2 {[%emt 0:09:52]} O-O {[%emt 0:02:17]} 16. Be2 {[%emt 0:04:51]} a5 {[%emt 0:01:48]} 17. O-O {[%emt 0:03:35]} Ba6 {[%emt 0:03:08]} 18. Bxa6 {[%emt 0:01:46]} Rxa6 {[%emt 0:00:52]} 19. d3 {[%emt 0:01:46]} exd3 {[%emt 0:01:25]} 20. Qxd3 {[%emt 0:00:13]} Ra8 {[%emt 0:03:54]} 21. Rac1 {[%emt 0:11:03]} Na6 {[%emt 0:01:25]} 22. Rfd1 {[%emt 0:03:04][%cal Od3e2]} (22. Rxc6 Nb4 23. Qb5 Nxc6 24. Qxc6 Qc8 $19) 22... Qc7 {[%emt 0:04:22]} (22... Nb4 $11 23. Qb1 Qc7) 23. Qf5 {[%emt 0:07:44]} Rfe8 {[%emt 0:08:54]} 24. Nd3 {[%emt 0:11:07]} ({Better is} 24. Bxf6 $16 Bxf6 25. Ng4) 24... Nd7 {[%emt 0:04:07]} 25. Ne5 {[%emt 0:11:59]} Nxe5 {[%emt 0:00:07]} 26. Bxe5 {[%emt 0:01:30]} (26. Qxe5 {simplifies} Qxe5 27. Bxe5 f6 28. Bd4) 26... Qb7 {[%emt 0:02:04]} 27. e4 {[%emt 0:03:23]} (27. Bd4 {simplifies} Bf8 28. Qg4 Kh8 29. Rc3) 27... Nb4 {[%emt 0:08:31]} 28. exd5 {[%emt 0:00:17]} Nxd5 {[%emt 0:00:13]} 29. Rd3 {[%emt 0:04:11]} Bf6 {[%emt 0:01:46]} 30. Re1 {[%emt 0:07:08]} (30. Bxf6 $11 Nxf6 31. Qc5) 30... Qb4 {[%emt 0:04:46]} 31. Rf1 {[%emt 0:02:56]} Qe7 {[%emt 0:10:57]} (31... Re6 $17 32. Rdf3 Qb7) 32. Bxf6 $15 {[%emt 0:01:10]} Nxf6 {[%emt 0:00:07]} 33. h3 {[%emt 0:01:58]} Nd5 {[%emt 0:01:11]} 34. Qh5 {[%emt 0:01:42]} Rad8 {[%emt 0:02:15][%cal Od5f4] And now ...Nxf4! would win.} 35. Rg3 {[%emt 0:01:09] This move loses the game for White.} (35. Qf3 $17) 35... Qf6 {[%emt 0:01:13][%cal Od5e3] Hoping for ...Ne3!} 36. Kh2 $2 {[%emt 0:01:16]} (36. Rd3 {is the only way for White.}) 36... Ne3 $19 {[%emt 0:01:20]} ({Weaker is} 36... Nxf4 37. Qxa5 Rd4 38. Qc5 $11) 37. Rc1 {[%emt 0:00:41]} Qxf4 {[%emt 0:02:32]} 38. Qf3 {[%emt 0:00:01]} Nxg2 {[%emt 0:02:03]} 39. Rg1 {[%emt 0:01:17]} (39. Qxf4 {was called for.} Nxf4 40. Rc2) 39... Qxf3 {[%emt 0:01:01]} 40. Rxf3 {[%emt 0:00:01]} Nh4 {[%emt 0:00:16]} 41. Rf2 {[%emt 0:00:04]} Re3 {[%emt 0:02:03]} 42. Rg3 {[%emt 0:00:31]} Rdd3 {[%emt 0:00:17]} 43. Rxe3 {[%emt 0:00:04]} Rxe3 {[%emt 0:00:02]} 44. Rc2 {[%emt 0:00:10]} (44. Nb2 {is a better defense.}) 44... Nf3+ {[%emt 0:01:19]} 45. Kh1 {[%emt 0:00:14]} g5 {[%emt 0:02:27]} 46. Rxc6 $2 {[%emt 0:00:19]} (46. Rc3 $19 Re1+ 47. Kg2 Nh4+ 48. Kf2) 46... Re2 {[%emt 0:00:07] Weighted Error Value: White=0.51/Black=0.23 (precise) .  Mistake:       	White=8     	Black=2      Inaccurate:     	White=4     	Black=5      OK:         	White=16    	Black=14     Best:        	White=1     	Black=5} 0-1

[Event "EYCC O18-ch 2024"]
[Site "Prague"]
[Date "2024.08.30"]
[Round "8.18"]
[White "Stevik, Patrik"]
[Black "Borrmann, Laurenz"]
[Result "0-1"]
[ECO "B50"]
[WhiteElo "2244"]
[BlackElo "2427"]
[Annotator "RC"]
[PlyCount "96"]
[EventDate "2024.08.19"]
[EventType "swiss"]
[EventCountry "CZE"]
[SourceTitle "playchess.com"]
[Source "ChessBase"]
[SourceQuality "1"]
[TimeControl "5400+30"]

1. e4 {[%emt 0:00:05]} c5 {[%emt 0:00:12]} 2. Nf3 {[%emt 0:00:06]} d6 {[%emt 0:00:08]} 3. b4 {[%emt 0:00:05]} cxb4 {[%emt 0:00:44]} 4. d4 {[%emt 0:00:08]} Nf6 {[%emt 0:00:58]} 5. Nbd2 {[%emt 0:00:05]} Qc7 {[%emt 0:07:06]} 6. Bd3 {[%emt 0:03:13]} e5 {[%emt 0:12:44]} 7. Bb2 {[%emt 0:02:58]} Nc6 {[%emt 0:06:27]} 8. h3 {[%emt 0:06:58]} Be7 {[%emt 0:10:06]} 9. O-O {[%emt 0:22:16]} O-O {[%emt 0:06:26]} 10. Re1 {[%emt 0:02:58]} Re8 {[%emt 0:06:49]} 11. Nc4 {[%emt 0:02:13]} Bf8 {[%emt 0:07:27]} 12. Ne3 {[%emt 0:07:39]} Bd7 {[%emt 0:03:17]} 13. d5 {[%emt 0:05:29]} Ne7 {[%emt 0:02:42]} 14. g4 {[%emt 0:04:09]} Ng6 {[%emt 0:01:47]} 15. Ng2 {[%emt 0:00:36]} Qd8 {[%emt 0:04:09]} 16. Nh2 {[%emt 0:03:31]} h6 {[%emt 0:01:37]} 17. h4 {[%emt 0:06:00]} Nh7 {[%emt 0:02:30]} 18. h5 {[%emt 0:00:56]} Nh4 {[%emt 0:00:18]} 19. Bc1 {[%emt 0:03:52]} Ng5 {[%emt 0:03:53]} 20. Re3 {[%emt 0:04:15]} Nxg2 {[%emt 0:01:02]} 21. Kxg2 {[%emt 0:00:02]} Qc7 {[%emt 0:02:22]} 22. Nf1 {[%emt 0:02:36]} Rec8 {[%emt 0:03:55]} 23. Rb1 {[%emt 0:01:10]} a5 {[%emt 0:00:32]} 24. Rg3 {[%emt 0:01:11]} Qd8 {[%emt 0:02:23]} 25. Ne3 {[%emt 0:01:29]} Qf6 {[%emt 0:00:33]} 26. a3 {[%emt 0:01:36]} bxa3 {[%emt 0:02:35]} 27. Rxb7 {[%emt 0:00:01]} a2 {[%emt 0:01:04]} 28. Bd2 {[%emt 0:00:46]} Rcb8 {[%emt 0:01:15]} 29. Rxb8 {[%emt 0:00:01]} Rxb8 {[%emt 0:00:01]} 30. Qa1 {[%emt 0:00:01]} a4 {[%emt 0:00:50]} 31. Qxa2 {[%emt 0:00:23]} Qd8 {[%emt 0:00:44]} 32. Nf5 {[%emt 0:02:21]} Qb6 {[%emt 0:01:14]} 33. Bc1 {[%emt 0:04:39]} Qb4 {[%emt 0:01:23]} 34. Re3 {[%emt 0:01:17]} g6 {[%emt 0:00:47]} 35. hxg6 {[%emt 0:00:59]} fxg6 {[%emt 0:00:01]} 36. Nh4 {[%emt 0:02:10]} Kg7 {[%emt 0:00:13]} 37. Ba3 {[%emt 0:02:18]} Qd4 {[%emt 0:01:17]} 38. Nf3 {[%emt 0:01:41]} Nxf3 {[%emt 0:00:24]} 39. Kxf3 {[%emt 0:00:01]} Be7 {[%emt 0:00:23]} 40. Qc4 {[%emt 0:01:15]} Qa1 {[%emt 0:01:32]} 41. Qc7 {[%emt 0:01:46]} Qh1+ {[%emt 0:01:53]} 42. Ke2 {[%emt 0:00:02]} Bxg4+ {[%emt 0:00:21]} 43. f3 {[%emt 0:00:10]} Qg2+ {[%emt 0:00:20]} 44. Kd1 {[%emt 0:00:01]} Rb1+ {[%emt 0:01:03]} 45. Bc1 {[%emt 0:00:02]} Bxf3+ {[%emt 0:00:32]} 46. Be2 {[%emt 0:00:07]} Qf1+ {[%emt 0:00:50]} 47. Kd2 {[%emt 0:00:11]} Qxc1+ {[%emt 0:00:08]} 48. Kd3 {[%emt 0:00:02]} Rb3+ {[%emt 0:00:54]} 0-1